bitfinex/quotes_BTCUSD_20250330
["timestamp","ask_amount","ask_price","bid_price","bid_amount"]
[1743376745983,0.13478029,82380.0,82363.0,0.09466868]
[1743376746180,0.00889726,82379.0,82363.0,0.09466868]
[1743376746379,0.00889726,82379.0,82364.0,0.06524247]
[1743376746580,0.00889726,82379.0,82365.0,0.00242776]
[1743376746846,0.03978322,82379.0,82365.0,0.00242776]
[1743376746989,0.03978322,82379.0,82363.0,0.0807]
[1743376747196,0.13478029,82374.0,82363.0,0.0827]
[1743376747450,0.00895525,82373.0,82363.0,0.0827]
[1743376747601,0.00895525,82373.0,82363.0,0.09584058]
[1743376747803,0.00895525,82373.0,82363.0,0.0807]
[1743376748032,0.00895525,82373.0,82364.0,0.1482]
[1743376749617,0.00895525,82373.0,82364.0,0.1502]
[1743376751206,0.00895525,82373.0,82367.0,0.02427003]
[1743376751382,0.00895525,82373.0,82364.0,0.1502]
[1743376751520,0.13478029,82374.0,82364.0,0.002]
[1743376751725,0.13478029,82374.0,82365.0,0.14816]
[1743376751946,0.00900387,82373.0,82364.0,0.002]
[1743376752145,0.00900387,82373.0,82365.0,0.14816]
[1743376752346,0.00900387,82372.0,82365.0,0.14816]
[1743376752741,0.03088596,82379.0,82365.0,0.17327227]
[1743376752943,0.27848655,82380.0,82365.0,0.17327227]
[1743376753141,0.00900387,82378.0,82365.0,0.17327227]
[1743376753377,0.00900387,82377.0,82365.0,0.17327227]
[1743376753757,0.00900387,82376.0,82367.0,0.001]
[1743376753960,0.00900387,82376.0,82368.0,0.14816]
[1743376754206,0.01214,82368.0,82367.0,0.001]
[1743376754447,0.242807,82370.0,82367.0,0.001]
[1743376754650,0.00900387,82368.0,82367.0,0.001]
[1743376754955,0.01214,82368.0,82367.0,0.001]
[1743376755093,0.02114387,82368.0,82367.0,0.001]
[1743376755303,0.02114387,82368.0,82363.0,0.14816]
[1743376755721,0.00900387,82368.0,82363.0,0.14816]
[1743376755917,0.00900387,82368.0,82365.0,0.001]
[1743376756138,0.00900387,82368.0,82363.0,0.14816]
[1743376756467,0.27331559,82379.0,82363.0,0.14816]
[1743376756831,0.242786,82377.0,82363.0,0.14816]
[1743376757239,0.242792,82375.0,82363.0,0.14816]
[1743376757438,0.254937,82373.0,82363.0,0.14816]
[1743376757640,0.00900387,82372.0,82363.0,0.14816]
[1743376757897,0.254931,82375.0,82363.0,0.14816]
[1743376758097,0.00900387,82371.0,82363.0,0.14816]
[1743376758311,0.25170397,82380.0,82363.0,0.14816]
[1743376758459,0.00900387,82370.0,82365.0,0.0803]
[1743376758663,0.002,82377.0,82365.0,0.0803]
[1743376758868,0.002,82377.0,82367.0,0.01454085]
[1743376759046,0.03053459,82379.0,82367.0,0.01454085]
[1743376759246,0.254894,82387.0,82368.0,0.03035168]
[1743376759451,0.002,82377.0,82368.0,0.03035168]
[1743376759881,0.002,82377.0,82369.0,0.0024278]
[1743376760051,0.002,82377.0,82368.0,0.03035168]
[1743376760254,0.0315058,82379.0,82368.0,0.03035168]
[1743376760659,0.0315058,82379.0,82367.0,0.01454085]
[1743376761185,0.00897309,82378.0,82367.0,0.01454085]
[1743376761543,0.0305058,82379.0,82369.0,0.01454085]
[1743376761961,0.012137,82387.0,82369.0,0.01454085]
[1743376762164,0.012137,82387.0,82369.0,0.01554085]
[1743376762379,0.00899818,82386.0,82369.0,0.01554085]
[1743376762699,0.012138,82382.0,82367.0,0.01554085]
[1743376762892,0.254912,82382.0,82369.0,0.001]
[1743376763072,0.254912,82382.0,82368.0,0.14812]
[1743376763392,0.00899167,82381.0,82368.0,0.14812]
[1743376764031,0.2549,82385.0,82369.0,0.027412]
[1743376764189,0.02112825,82384.0,82369.0,0.027412]
[1743376764397,0.242768,82383.0,82369.0,0.027412]
[1743376764753,0.03941771,82386.0,82369.0,0.027412]
[1743376764963,0.001,82387.0,82370.0,0.00242794]
[1743376765166,0.254865,82397.0,82372.0,0.01454085]
[1743376765406,0.012136,82396.0,82373.0,0.00242767]
[1743376765614,0.00899025,82395.0,82373.0,0.00242767]
[1743376765818,0.25172525,82395.0,82373.0,0.00242767]
[1743376766022,0.012136,82393.0,82374.0,0.01954845]
[1743376766229,0.0003368,82388.0,82374.0,0.01954845]
[1743376766429,0.00899025,82387.0,82374.0,0.01954845]
[1743376766833,0.00999025,82387.0,82374.0,0.01954845]
[1743376768925,0.01099025,82387.0,82374.0,0.01954845]
[1743376769117,0.01099025,82387.0,82377.0,0.0457]
[1743376769410,0.01099025,82387.0,82378.0,0.01454085]
[1743376769590,0.01099025,82387.0,82377.0,0.04812764]
[1743376769591,0.002,82387.0,82380.0,0.01454085]
[1743376769819,0.002,82387.0,82381.0,0.0024274]
[1743376770030,0.002,82387.0,82382.0,0.01429682]
[1743376770169,0.002,82387.0,82377.0,0.300622]
[1743376770170,0.001,82387.0,82385.0,0.01454085]
[1743376770388,0.001,82387.0,82385.0,0.01696822]
[1743376770630,0.001,82387.0,82386.0,0.06024085]
[1743376770831,0.0003368,82388.0,82387.0,0.01454085]
[1743376771140,0.0003368,82388.0,82387.0,0.01354085]
[1743376771493,0.0003368,82388.0,82387.0,0.01254085]
[1743376772332,0.0003368,82388.0,82387.0,0.01354085]
[1743376772532,0.0003368,82388.0,82387.0,0.14804]
[1743376772730,0.0003368,82388.0,82387.0,0.002]
[1743376772931,0.0003368,82388.0,82387.0,0.15004]
[1743376773134,0.00942794,82388.0,82387.0,0.15204]
[1743376773343,0.0003368,82388.0,82387.0,0.15204]
[1743376773757,0.0003368,82388.0,82387.0,0.004]
[1743376773943,0.0003368,82388.0,82387.0,0.15004]
[1743376774254,0.0003368,82388.0,82387.0,0.15204]
[1743376774459,0.0003368,82388.0,82387.0,0.004]
[1743376774664,0.00942794,82388.0,82387.0,0.004]
[1743376774817,0.0003368,82388.0,82387.0,0.004]
[1743376775429,0.0003368,82388.0,82387.0,0.002]
[1743376775657,0.0003368,82388.0,82387.0,0.017004]
[1743376775868,0.0003368,82388.0,82387.0,0.003]
[1743376778150,0.0003368,82388.0,82387.0,0.00542732]
[1743376778549,0.0003368,82388.0,82387.0,0.003]
[1743376779154,0.0003368,82388.0,82387.0,0.09934085]
[1743376779976,0.0003368,82388.0,82387.0,0.15987785]
[1743376780235,0.0003368,82388.0,82387.0,0.22003697]
[1743376780481,0.0003368,82388.0,82387.0,0.37046387]
[1743376780761,0.0003368,82388.0,82387.0,0.36603697]
[1743376781011,0.0003368,82388.0,82387.0,0.36696902]
[1743376781485,0.0003368,82388.0,82387.0,0.35417634]
[1743376781720,0.0003368,82388.0,82387.0,0.35917634]
[1743376781971,0.0003366,82413.0,82398.0,0.012136]
[1743376782235,0.0003366,82413.0,82400.0,0.01454085]
[1743376782496,0.04055719,82413.0,82411.0,0.01454085]
[1743376782757,0.00047769,82413.0,82412.0,0.16250085]
[1743376782958,0.00047769,82413.0,82412.0,0.16492728]
[1743376783157,0.00047769,82413.0,82412.0,0.16392728]
[1743376783268,0.00047769,82413.0,82412.0,0.18750691]
[1743376783690,0.0304137,82413.0,82412.0,0.18750691]
[1743376783889,0.0304137,82413.0,82412.0,0.18508048]
[1743376784610,0.0304137,82413.0,82412.0,0.23790085]
[1743376784819,0.0304137,82413.0,82412.0,0.09094085]
[1743376784969,0.0304137,82413.0,82412.0,0.23890085]
[1743376785176,0.0304137,82413.0,82412.0,0.24090085]
[1743376785581,0.0304137,82413.0,82412.0,0.23990085]
[1743376785842,0.0304137,82413.0,82412.0,0.24286085]
[1743376786195,0.05925598,82430.0,82413.0,0.01454085]
[1743376786580,0.242638,82427.0,82412.0,0.10844609]
[1743376786781,0.25478,82424.0,82413.0,0.14792]
[1743376787101,0.012132,82421.0,82414.0,0.14792]
[1743376787722,0.012132,82422.0,82414.0,0.14792]
[1743376788165,0.254785,82422.0,82414.0,0.14792]
[1743376788471,0.242666,82418.0,82403.0,0.01454085]
[1743376788694,0.012133,82415.0,82404.0,0.14792]
[1743376788893,0.012132,82420.0,82404.0,0.14792]
[1743376789078,0.00905039,82415.0,82404.0,0.14792]
[1743376789223,0.242647,82424.0,82404.0,0.14792]
[1743376789576,0.0092235,82423.0,82406.0,0.01454085]
[1743376789767,0.0092235,82423.0,82407.0,0.00242666]
[1743376789928,0.0089254,82424.0,82407.0,0.00242666]
[1743376790148,0.0089254,82424.0,82408.0,0.09094085]
[1743376790149,0.00919969,82422.0,82408.0,0.09094085]
[1743376790362,0.0089254,82424.0,82409.0,0.00242661]
[1743376790526,0.00919969,82421.0,82412.0,0.0001683]
[1743376790726,0.0089254,82424.0,82413.0,0.14792]
[1743376790951,0.0089254,82424.0,82414.0,0.001]
[1743376791148,0.00919969,82423.0,82414.0,0.001]
[1743376791405,0.00919969,82423.0,82413.0,0.14792]
[1743376792699,0.012133,82419.0,82412.0,0.0001683]
[1743376792905,0.012133,82419.0,82412.0,0.1480483]
[1743376792906,0.00927247,82418.0,82412.0,0.1480483]
[1743376793290,0.2637054,82424.0,82412.0,0.1480483]
[1743376793658,0.00927247,82423.0,82413.0,0.01480483]
[1743376793997,0.0089254,82424.0,82413.0,0.01480483]
[1743376794201,0.00927128,82422.0,82413.0,0.01480483]
[1743376794410,0.0089254,82424.0,82413.0,0.01480483]
[1743376794607,0.00927128,82421.0,82413.0,0.01480483]
[1743376794995,0.0089254,82424.0,82414.0,0.01638531]
[1743376794996,0.0092652,82420.0,82414.0,0.01638531]
[1743376795409,0.0099254,82424.0,82415.0,0.0764]
[1743376795579,0.0099254,82424.0,82416.0,0.01454085]
[1743376795763,0.0092652,82423.0,82416.0,0.01454085]
[1743376795950,0.0089254,82424.0,82417.0,0.0476]
[1743376796152,0.0089254,82424.0,82418.0,0.03064008]
[1743376796547,0.0099254,82424.0,82419.0,0.01696723]
[1743376796979,0.0092652,82423.0,82421.0,0.02455341]
[1743376797295,0.0089254,82424.0,82421.0,0.02455341]
[1743376797506,0.0092652,82423.0,82421.0,0.02455341]
[1743376797742,0.0089254,82424.0,82421.0,0.02455341]
[1743376797953,0.0089254,82424.0,82422.0,0.14788]
[1743376798141,0.0092652,82423.0,82422.0,0.14788]
[1743376798350,0.0089254,82424.0,82422.0,0.14788]
[1743376799642,0.0089254,82424.0,82422.0,0.17484406]
[1743376799900,0.0089254,82424.0,82422.0,0.17684406]
[1743376800242,0.0089254,82424.0,82422.0,0.17884406]
[1743376800443,0.0089254,82424.0,82423.0,0.01454085]
[1743376800642,0.0181906,82424.0,82423.0,0.16238085]
[1743376802702,0.0181906,82424.0,82423.0,0.16438085]
[1743376803270,0.0181906,82424.0,82423.0,0.16638085]
[1743376803470,0.0181906,82424.0,82423.0,0.19084294]
[1743376803671,0.0092652,82424.0,82423.0,0.26624294]
[1743376803874,0.03767285,82430.0,82429.0,0.02667185]
[1743376804085,0.03767285,82430.0,82429.0,0.09236662]
[1743376804277,0.03767285,82430.0,82429.0,0.19343882]
[1743376804478,0.03767285,82430.0,82429.0,0.13534085]
[1743376804685,0.03767285,82430.0,82429.0,0.20774085]
[1743376805057,0.03767285,82430.0,82429.0,0.1478]
[1743376805964,0.03767285,82430.0,82429.0,0.1518]
[1743376806377,0.30037787,82430.0,82429.0,0.004]
[1743376806600,0.38057787,82430.0,82429.0,0.004]
[1743376806758,0.38057787,82430.0,82429.0,0.008]
[1743376807378,0.38057787,82430.0,82429.0,0.004]
[1743376807869,0.012131,82427.0,82421.0,0.1478]
[1743376808274,0.012131,82428.0,82421.0,0.1478]
[1743376808403,0.00794402,82426.0,82421.0,0.16506115]
[1743376808606,0.03767285,82430.0,82421.0,0.16506115]
[1743376808802,0.00794402,82425.0,82421.0,0.16506115]
[1743376809048,0.03767285,82430.0,82421.0,0.16606115]
[1743376809234,0.00794402,82424.0,82421.0,0.16606115]
[1743376809412,0.03767285,82430.0,82421.0,0.16606115]
[1743376809629,0.00794402,82423.0,82421.0,0.16606115]
[1743376809831,0.04980385,82430.0,82421.0,0.1488]
[1743376810237,0.00794402,82429.0,82421.0,0.1488]
[1743376810434,0.00794402,82429.0,82421.0,0.1478]
[1743376810612,0.03767285,82430.0,82421.0,0.1478]
[1743376810903,0.00794402,82429.0,82421.0,0.16495997]
[1743376811057,0.012132,82424.0,82412.0,0.0001683]
[1743376811269,0.242677,82414.0,82412.0,0.0001683]
[1743376811443,0.242677,82414.0,82413.0,0.14776]
[1743376811647,0.25056519,82414.0,82413.0,0.14776]
[1743376811849,0.25056519,82414.0,82412.0,0.0001683]
[1743376812104,0.012134,82413.0,82412.0,0.0001683]
[1743376812269,0.680037,82413.0,82412.0,0.0001683]
[1743376812475,0.69707609,82413.0,82412.0,0.0011683]
[1743376812671,0.62132409,82413.0,82412.0,0.0011683]
[1743376812873,0.42141909,82413.0,82412.0,0.0001683]
[1743376813251,0.42141909,82413.0,82412.0,0.0021683]
[1743376813535,0.42141909,82413.0,82412.0,0.0001683]
[1743376815212,0.49731909,82413.0,82412.0,0.0001683]
[1743376815411,0.54491909,82413.0,82412.0,0.0001683]
[1743376816990,0.15467309,82413.0,82412.0,0.0001683]
[1743376817222,1.04352809,82413.0,82412.0,0.0001683]
[1743376817421,0.69218309,82413.0,82412.0,0.0001683]
[1743376817840,0.242756,82388.0,82382.0,0.07324551]
[1743376817996,0.242766,82384.0,82382.0,0.04964109]
[1743376818195,0.242766,82384.0,82383.0,0.14776]
[1743376818609,0.25987707,82384.0,82382.0,0.04964109]
[1743376818810,0.012138,82383.0,82382.0,0.00014109]
[1743376818966,0.254919,82379.0,82378.0,0.0001684]
[1743376819175,0.858437,82379.0,82378.0,0.0001684]
[1743376819373,1.21531414,82379.0,82378.0,0.0001684]
[1743376819619,0.768776,82379.0,82378.0,0.0001684]
[1743376819825,1.10647866,82379.0,82378.0,0.0001684]
[1743376819997,1.06799158,82379.0,82378.0,4e-07]
[1743376820195,0.29921558,82379.0,82378.0,4e-07]
[1743376821022,0.30021558,82379.0,82378.0,4e-07]
[1743376821243,0.012141,82364.0,82350.0,0.0001684]
[1743376821784,0.01841054,82364.0,82350.0,0.0001684]
[1743376822685,0.01841054,82364.0,82363.0,0.0031684]
[1743376823321,0.01841054,82364.0,82363.0,0.0071684]
[1743376823548,0.54176154,82364.0,82363.0,0.0071684]
[1743376823742,0.255005,82351.0,82350.0,0.0001684]
[1743376823952,0.26125079,82351.0,82350.0,0.00021535]
[1743376826364,0.26125079,82351.0,82350.0,0.00221535]
[1743376826542,0.27034587,82351.0,82350.0,0.00221535]
[1743376826926,0.27034587,82351.0,82350.0,0.00421535]
[1743376828195,0.83439087,82351.0,82350.0,0.00421535]
[1743376828392,1.52946087,82351.0,82350.0,0.00421535]
[1743376828769,0.255033,82342.0,82341.0,0.004]
[1743376828891,0.255042,82339.0,82338.0,1e-08]
[1743376829095,0.255095,82322.0,82317.0,0.0001683]
[1743376829519,0.2611188,82322.0,82321.0,0.00063913]
[1743376830148,0.95213156,82322.0,82321.0,0.00263913]
[1743376830320,0.012147,82321.0,82320.0,0.002]
[1743376830523,0.255111,82317.0,82316.0,0.00183171]
[1743376830742,1.93495475,82317.0,82316.0,0.00197266]
[1743376831167,1.52565224,82317.0,82316.0,0.00197266]
[1743376831373,0.012148,82316.0,82294.0,0.0484]
[1743376831572,0.825418,82316.0,82294.0,0.0484]
[1743376831777,0.74357478,82316.0,82294.0,0.0484]
[1743376833090,0.74457478,82316.0,82294.0,0.0484]
[1743376833501,0.74557478,82316.0,82294.0,0.0484]
[1743376835075,0.255125,82312.0,82294.0,0.0484]
[1743376835278,0.255125,82312.0,82285.0,0.0813]
[1743376835279,0.01215,82298.0,82285.0,0.0813]
[1743376835452,0.255178,82296.0,82294.0,0.00014111]
[1743376835668,0.02429063,82295.0,82294.0,0.00014111]
[1743376836380,0.012152,82287.0,82283.0,0.0484]
[1743376836545,0.012152,82285.0,82283.0,0.0484]
[1743376836744,0.255204,82287.0,82283.0,0.0484]
[1743376836991,0.01212624,82286.0,82283.0,0.0484]
[1743376837191,0.01212624,82286.0,82280.0,0.1480083]
[1743376837415,0.02113318,82286.0,82280.0,0.1480083]
[1743376837625,0.012153,82282.0,82281.0,0.01038764]
[1743376837827,0.248857,82282.0,82281.0,0.01038764]
[1743376838023,0.2609801,82282.0,82281.0,0.00429528]
[1743376838580,0.012153,82278.0,82266.0,0.22914]
[1743376838780,0.012154,82277.0,82266.0,0.22914]
[1743376838987,0.255241,82275.0,82266.0,0.22914]
[1743376839117,0.24309,82274.0,82266.0,0.22914]
[1743376839497,0.012154,82275.0,82266.0,0.22914]
[1743376839669,0.25521424,82273.0,82266.0,0.22914]
[1743376839877,0.012154,82272.0,82266.0,0.22914]
[1743376840075,0.012154,82271.0,82266.0,0.14784]
[1743376840221,0.012155,82270.0,82267.0,0.0031683]
[1743376840424,0.01212024,82270.0,82267.0,0.0031683]
[1743376840843,0.012154,82273.0,82267.0,0.0031683]
[1743376841044,0.01212024,82269.0,82267.0,0.0031683]
[1743376841243,0.012154,82274.0,82267.0,0.0031683]
[1743376841469,0.01212024,82272.0,82267.0,0.0031683]
[1743376841663,0.255238,82276.0,82267.0,0.0001683]
[1743376841876,0.01212024,82271.0,82267.0,0.0041683]
[1743376842179,0.01212024,82270.0,82267.0,0.0041683]
[1743376842548,0.012154,82275.0,82267.0,0.0001683]
[1743376842747,0.02407213,82298.0,82267.0,0.0001683]
[1743376842748,0.01212024,82274.0,82267.0,0.00259949]
[1743376842956,0.01212024,82274.0,82267.0,0.01713993]
[1743376843323,0.255211,82285.0,82267.0,0.01713993]
[1743376843530,0.01182111,82284.0,82267.0,0.01713993]
[1743376843734,0.01182111,82284.0,82269.0,0.01454085]
[1743376844328,0.02397411,82284.0,82269.0,0.01454085]
[1743376844569,0.01182111,82284.0,82269.0,0.01454085]
[1743376844983,0.01182111,82284.0,82271.0,0.06294085]
[1743376845216,0.01182111,82284.0,82273.0,0.01454085]
[1743376845419,0.00924029,82286.0,82275.0,0.01454085]
[1743376845808,0.012151,82292.0,82275.0,0.01454085]
[1743376846112,0.01186043,82291.0,82281.0,0.01454085]
[1743376846332,0.012152,82290.0,82282.0,0.14788]
[1743376846513,0.26705743,82289.0,82280.0,0.02418747]
[1743376846867,0.27633337,82289.0,82280.0,0.02418747]
[1743376847122,0.27633337,82289.0,82281.0,0.14788]
[1743376847357,0.012152,82288.0,82281.0,0.14788]
[1743376847556,0.012152,82288.0,82275.0,0.002]
[1743376847557,0.243059,82285.0,82282.0,0.14788]
[1743376847760,0.02401343,82284.0,82275.0,0.002]
[1743376847934,0.01186043,82284.0,82276.0,0.14788]
[1743376848138,0.26447294,82289.0,82276.0,0.14788]
[1743376848381,0.01186043,82283.0,82276.0,0.14788]
[1743376848609,0.012152,82288.0,82280.0,0.002]
[1743376848810,0.01186043,82282.0,82280.0,0.002]
[1743376849042,0.255205,82287.0,82276.0,0.14788]
[1743376849243,0.01186043,82281.0,82276.0,0.14788]
[1743376849374,0.255205,82287.0,82276.0,0.14988]
[1743376849578,0.01186043,82280.0,82276.0,0.14988]
[1743376849778,0.012152,82288.0,82276.0,0.14788]
[1743376850207,0.01186043,82287.0,82276.0,0.15188]
[1743376850361,0.01186043,82287.0,82276.0,0.14988]
[1743376850905,0.01186043,82287.0,82276.0,0.15188]
[1743376851104,0.01186043,82287.0,82276.0,0.14988]
[1743376851421,0.01186043,82287.0,82276.0,0.14788]
[1743376851562,0.01186043,82287.0,82276.0,0.14988]
[1743376851767,0.26706443,82287.0,82276.0,0.14988]
[1743376852167,0.26706443,82287.0,82276.0,0.14788]
[1743376852413,0.26706443,82287.0,82276.0,0.15088]
[1743376852754,0.02401243,82287.0,82276.0,0.003]
[1743376852905,0.255225,82281.0,82276.0,0.15088]
[1743376853081,0.01189795,82280.0,82276.0,0.15088]
[1743376853876,0.012153,82282.0,82276.0,0.15088]
[1743376854080,0.01189795,82281.0,82276.0,0.14988]
[1743376854286,0.01189795,82281.0,82276.0,0.16772485]
[1743376854670,0.00927594,82289.0,82277.0,0.0758]
[1743376854949,0.255176,82296.0,82278.0,0.01454085]
[1743376855189,0.01188582,82295.0,82280.0,0.01454085]
[1743376855745,0.01188582,82295.0,82281.0,0.0024304]
[1743376855973,0.2553138,82297.0,82282.0,0.0484]
[1743376856371,0.243028,82295.0,82282.0,0.0484]
[1743376856937,0.01191298,82294.0,82282.0,0.0484]
[1743376857340,0.0093856,82297.0,82282.0,0.0508304]
[1743376857540,0.01191298,82296.0,82283.0,0.01454085]
[1743376857763,0.0093856,82297.0,82285.0,0.01454085]
[1743376857965,0.0093856,82297.0,82289.0,0.01454085]
[1743376858189,0.0093856,82297.0,82291.0,0.01454085]
[1743376858618,0.0103856,82297.0,82292.0,0.02486632]
[1743376858845,0.0103856,82297.0,82293.0,0.14784]
[1743376859201,0.0093856,82297.0,82293.0,0.14784]
[1743376859751,0.0093856,82297.0,82294.0,0.14784]
[1743376859944,0.0119257,82296.0,82294.0,0.14784]
[1743376860294,0.0003372,82295.0,82293.0,0.001]
[1743376860515,0.0003372,82295.0,82294.0,0.14784]
[1743376861324,0.0003372,82295.0,82294.0,0.15284]
[1743376861592,0.0003372,82295.0,82294.0,0.17891649]
[1743376861794,0.0003372,82295.0,82294.0,0.18945734]
[1743376862199,0.0003372,82295.0,82294.0,0.15184]
[1743376862734,0.0003372,82295.0,82294.0,0.15084]
[1743376863063,0.0003372,82295.0,82294.0,0.15184]
[1743376863665,0.0003372,82295.0,82294.0,0.14884]
[1743376863903,0.0003372,82295.0,82294.0,0.15284]
[1743376864513,0.0003372,82295.0,82294.0,0.14884]
[1743376864696,0.0003372,82295.0,82294.0,0.15184]
[1743376864893,0.0003372,82295.0,82294.0,0.19260035]
[1743376865099,0.0003372,82295.0,82294.0,0.19503037]
[1743376865302,0.0003372,82295.0,82294.0,0.32333037]
[1743376865501,0.0003372,82295.0,82294.0,0.32090035]
[1743376865705,0.0003372,82295.0,82294.0,0.29468085]
[1743376866816,0.0003372,82295.0,82294.0,0.28014]
[1743376867426,0.0003372,82295.0,82294.0,0.1323]
[1743376867625,0.0003372,82295.0,82294.0,0.55225297]
[1743376867896,0.0001408,82297.0,82296.0,0.26971685]
[1743376868105,0.0001408,82297.0,82296.0,0.49265932]
[1743376868908,0.0001408,82297.0,82296.0,0.49165932]
[1743376869150,0.19118658,82331.0,82303.0,0.1283]
[1743376869329,0.0487883,82331.0,82308.0,0.01454085]
[1743376869482,0.0487883,82331.0,82310.0,0.01454085]
[1743376869706,0.0487883,82331.0,82312.0,0.01454085]
[1743376869915,0.242927,82329.0,82313.0,0.0831]
[1743376870065,0.0609343,82331.0,82309.0,0.1478]
[1743376870066,0.14451997,82320.0,82309.0,0.1478]
[1743376870271,0.01208347,82319.0,82309.0,0.17175628]
[1743376870888,0.01208347,82319.0,82309.0,0.02395628]
[1743376871102,0.01208347,82319.0,82312.0,0.001]
[1743376871589,0.01208347,82319.0,82310.0,0.14776]
[1743376871773,0.01208347,82319.0,82311.0,0.14776]
[1743376872321,0.01208347,82319.0,82309.0,0.002]
[1743376872531,0.26718747,82319.0,82312.0,0.002]
[1743376872730,0.01208347,82319.0,82312.0,0.002]
[1743376872962,0.01208347,82319.0,82309.0,0.002]
[1743376873157,0.01208347,82319.0,82308.0,0.14776]
[1743376873158,0.255108,82318.0,82308.0,0.14776]
[1743376873358,0.01207834,82317.0,82311.0,0.002]
[1743376873558,0.24296,82318.0,82310.0,0.002]
[1743376873763,0.01207834,82317.0,82310.0,0.002]
[1743376873958,0.01207834,82317.0,82308.0,0.14776]
[1743376874182,0.012147,82319.0,82308.0,0.14776]
[1743376874358,0.01207834,82316.0,82308.0,0.14776]
[1743376874591,0.14451997,82320.0,82309.0,0.019296]
[1743376874758,0.01207834,82315.0,82308.0,0.14776]
[1743376874937,0.14451997,82320.0,82308.0,0.14776]
[1743376875328,0.01207834,82319.0,82308.0,0.14776]
[1743376877116,0.012149,82310.0,82303.0,0.0452]
[1743376877327,0.012149,82305.0,82293.0,0.0451]
[1743376877522,0.27105812,82303.0,82294.0,0.14776]
[1743376877882,0.3,82302.0,82295.0,0.14776]
[1743376878085,0.31207834,82302.0,82295.0,0.14776]
[1743376878365,0.31207834,82302.0,82296.0,0.01454085]
[1743376878609,0.31207834,82302.0,82298.0,0.01454085]
[1743376878997,0.01207834,82302.0,82298.0,0.01454085]
[1743376879197,0.01207834,82302.0,82296.0,0.01454085]
[1743376879427,0.3,82309.0,82296.0,0.01454085]
[1743376879782,0.01207834,82308.0,82298.0,0.004]
[1743376879983,0.01207834,82308.0,82296.0,0.01454085]
[1743376880379,0.01207834,82308.0,82296.0,0.01854085]
[1743376880654,0.01207834,82308.0,82298.0,0.01454085]
[1743376881059,0.01207834,82308.0,82296.0,0.00242986]
[1743376881192,0.01207834,82308.0,82299.0,0.00242986]
[1743376881997,0.01207834,82308.0,82300.0,0.01454085]
[1743376882240,0.01207834,82308.0,82298.0,0.00542986]
[1743376882450,0.01207834,82308.0,82299.0,0.01454085]
[1743376882894,0.01207834,82308.0,82299.0,0.003]
[1743376883491,0.01207834,82308.0,82299.0,0.006]
[1743376883690,0.01207834,82308.0,82299.0,0.003]
[1743376883904,0.012149,82306.0,82300.0,0.14772]
[1743376884264,0.01209429,82305.0,82300.0,0.14772]
[1743376884522,0.3,82309.0,82301.0,0.015372]
[1743376884952,0.01209429,82308.0,82301.0,0.015372]
[1743376885235,0.01209429,82308.0,82302.0,0.01454085]
[1743376885802,0.01209429,82308.0,82306.0,0.0451]
[1743376886014,0.01209429,82308.0,82307.0,0.01454085]
[1743376886219,0.000337,82319.0,82307.0,0.01454085]
[1743376886417,0.000337,82319.0,82307.0,0.03009214]
[1743376886644,0.01206186,82318.0,82307.0,0.03009214]
[1743376887305,0.01206186,82318.0,82307.0,0.01454085]
[1743376887426,0.01206186,82318.0,82309.0,0.01454085]
[1743376887623,0.01206186,82318.0,82311.0,0.01454085]
[1743376888026,0.01206186,82318.0,82310.0,0.00242953]
[1743376888027,0.01206186,82318.0,82317.0,0.01454085]
[1743376888235,0.01206186,82318.0,82317.0,0.16469015]
[1743376888454,0.000337,82319.0,82317.0,0.19639729]
[1743376888667,0.000337,82319.0,82317.0,0.16469015]
[1743376889280,0.000337,82319.0,82317.0,0.16669015]
[1743376889560,0.000337,82319.0,82317.0,0.16469015]
[1743376890020,0.000337,82319.0,82317.0,0.18183815]
[1743376890185,0.000337,82319.0,82317.0,0.16726085]
[1743376890386,0.000337,82319.0,82318.0,0.02668885]
[1743376890807,0.000337,82319.0,82318.0,0.01454085]
[1743376891669,0.000337,82319.0,82318.0,0.01754085]
[1743376892069,0.000337,82319.0,82318.0,0.02054085]
[1743376893635,0.000337,82319.0,82318.0,0.03511791]
[1743376893841,0.000337,82319.0,82318.0,0.02054085]
[1743376894040,0.000337,82319.0,82318.0,0.16822085]
[1743376894461,0.000337,82319.0,82318.0,0.02054085]
[1743376894663,0.000337,82319.0,82318.0,0.16522085]
[1743376894914,0.000337,82319.0,82318.0,0.16222085]
[1743376895268,0.000337,82319.0,82318.0,0.16622085]
[1743376895675,0.000337,82319.0,82318.0,0.008]
[1743376895875,0.000337,82319.0,82318.0,0.15568]
[1743376896854,0.000337,82319.0,82318.0,0.17992021]
[1743376897076,0.000337,82319.0,82318.0,0.19446106]
[1743376897364,0.000337,82319.0,82318.0,0.28680906]
[1743376897574,0.000337,82319.0,82318.0,0.27466106]
[1743376897769,0.000337,82319.0,82318.0,0.52976906]
[1743376897953,0.000337,82319.0,82318.0,0.27466106]
[1743376898695,0.000337,82319.0,82318.0,0.28680906]
[1743376899096,0.000337,82319.0,82318.0,0.52976906]
[1743376899997,0.000337,82319.0,82318.0,0.28680906]
[1743376900199,0.000337,82319.0,82318.0,0.10274085]
[1743376900391,0.000337,82319.0,82318.0,0.25038085]
[1743376900527,0.000337,82319.0,82318.0,0.17018085]
[1743376901425,0.000337,82319.0,82318.0,0.17261012]
[1743376901673,0.17671451,82341.0,82319.0,0.01454085]
[1743376901865,0.00047083,82331.0,82319.0,0.01454085]
[1743376903098,0.00047083,82331.0,82326.0,0.02417743]
[1743376904685,0.012146,82329.0,82327.0,0.14764]
[1743376904899,0.012146,82327.0,82316.0,0.0481]
[1743376905110,0.012146,82326.0,82317.0,0.2381517]
[1743376905249,0.255082,82326.0,82316.0,0.01454085]
[1743376905498,0.01224698,82325.0,82317.0,0.14764]
[1743376905697,0.01224698,82325.0,82319.0,0.02377565]
[1743376905904,0.255058,82334.0,82319.0,0.02377565]
[1743376906183,0.01224698,82330.0,82319.0,0.02377565]
[1743376906463,0.01224698,82330.0,82319.0,0.10573824]
[1743376906906,0.01224698,82330.0,82319.0,0.10973824]
[1743376907392,0.01224698,82330.0,82319.0,0.10773824]
[1743376907584,0.01224698,82330.0,82319.0,0.10873824]
[1743376907986,0.01224698,82330.0,82319.0,0.02677565]
[1743376908818,0.01224698,82330.0,82319.0,0.02477565]
[1743376908965,0.01224698,82330.0,82319.0,0.02577565]
[1743376909508,0.242901,82338.0,82319.0,0.02137605]
[1743376909650,0.01020581,82329.0,82319.0,0.02137605]